[Event "Titled Tuesday Blitz June 13 Early 2023"]
[White "Berezin, Viktor"]
[Black "Ivanchuk, Vasyl"]
[WhiteFideId "14107872"]
[BlackFideId "14100010"]
[WhiteElo "2310"]
[BlackElo "2710"]
[Result "0-1"]
[Round "1"]
[TimeControl "180+2"]
[Date "2023.06.13"]
[WhiteClock "0:00:09"]
[BlackClock "0:00:33"]
[Board "19"]

1. d4 {[%clk 0:02:57]}  Nf6 {[%clk 0:02:59]} 2. Nf3 {[%clk 0:02:55]}  e6 {[%clk 0:02:59]} 3. c4 {[%clk 0:02:55]}  Bb4+ {[%clk 0:02:58]} 4. Nbd2 {[%clk 0:02:55]}  a5 {[%clk 0:02:57]} 5. g3 {[%clk 0:02:55]}  d6 {[%clk 0:02:55]} 6. Bg2 {[%clk 0:02:55]}  Nc6 {[%clk 0:02:55]} 7. O-O {[%clk 0:02:55]}  e5 {[%clk 0:02:55]} 8. Nb3 {[%clk 0:02:50]}  a4 {[%clk 0:02:52]} 9. dxe5 {[%clk 0:02:44]}  dxe5 {[%clk 0:02:42]} 10. Qxd8+ {[%clk 0:02:32]}  Kxd8 {[%clk 0:02:43]} 11. Nbd2 {[%clk 0:02:19]}  Ke7 {[%clk 0:02:42]} 12. a3 {[%clk 0:02:13]}  Bd6 {[%clk 0:02:42]} 13. Nb1 {[%clk 0:02:06]}  Be6 {[%clk 0:02:39]} 14. Nfd2 {[%clk 0:02:02]}  Nd4 {[%clk 0:02:33]} 15. Nc3 {[%clk 0:02:03]}  c6 {[%clk 0:02:28]} 16. e3 {[%clk 0:01:47]}  Nb3 {[%clk 0:02:28]} 17. Rb1 {[%clk 0:01:31]}  Nxd2 {[%clk 0:02:24]} 18. Bxd2 {[%clk 0:01:32]}  Bxc4 {[%clk 0:02:24]} 19. Rfd1 {[%clk 0:01:32]}  Bb3 {[%clk 0:02:21]} 20. Rdc1 {[%clk 0:01:32]}  Rhd8 {[%clk 0:02:21]} 21. Be1 {[%clk 0:01:29]}  g6 {[%clk 0:02:15]} 22. Ne4 {[%clk 0:01:27]}  Nxe4 {[%clk 0:02:15]} 23. Bxe4 {[%clk 0:01:28]}  f5 {[%clk 0:02:15]} 24. Bc2 {[%clk 0:01:24]}  Bxc2 {[%clk 0:01:57]} 25. Rxc2 {[%clk 0:01:25]}  e4 {[%clk 0:01:57]} 26. Bc3 {[%clk 0:01:24]}  Bc7 {[%clk 0:01:52]} 27. Bb4+ {[%clk 0:01:21]}  Ke6 {[%clk 0:01:51]} 28. Kf1 {[%clk 0:01:20]}  Rd3 {[%clk 0:01:46]} 29. Ke2 {[%clk 0:01:16]}  Be5 {[%clk 0:01:45]} 30. Rc4 {[%clk 0:00:48]}  Rb3 {[%clk 0:01:34]} 31. Rc2 {[%clk 0:00:47]}  Rd8 {[%clk 0:01:29]} 32. h4 {[%clk 0:00:45]}  Rdd3 {[%clk 0:01:26]} 33. Be1 {[%clk 0:00:45]}  Kd5 {[%clk 0:01:17]} 34. Bb4 {[%clk 0:00:44]}  b6 {[%clk 0:01:15]} 35. Be1 {[%clk 0:00:43]}  c5 {[%clk 0:01:15]} 36. h5 {[%clk 0:00:42]}  gxh5 {[%clk 0:01:14]} 37. Bd2 {[%clk 0:00:39]}  Bf6 {[%clk 0:01:11]} 38. Be1 {[%clk 0:00:28]}  h4 {[%clk 0:01:10]} 39. gxh4 {[%clk 0:00:29]}  Bxh4 {[%clk 0:01:10]} 40. Bc3 {[%clk 0:00:27]}  Bg5 {[%clk 0:01:07]} 41. Rh1 {[%clk 0:00:25]}  h6 {[%clk 0:01:07]} 42. Rcc1 {[%clk 0:00:22]}  c4 {[%clk 0:01:02]} 43. Rcd1 {[%clk 0:00:23]}  b5 {[%clk 0:00:58]} 44. Rxd3+ {[%clk 0:00:20]}  cxd3+ {[%clk 0:00:54]} 45. Kd2 {[%clk 0:00:21]}  f4 {[%clk 0:00:52]} 46. Rg1 {[%clk 0:00:18]}  Ke6 {[%clk 0:00:44]} 47. Rg4 {[%clk 0:00:18]}  Kf5 {[%clk 0:00:44]} 48. Rg1 {[%clk 0:00:18]}  Bf6 {[%clk 0:00:43]} 49. exf4 {[%clk 0:00:13]}  Bxc3+ {[%clk 0:00:41]} 50. bxc3 {[%clk 0:00:14]}  Kxf4 {[%clk 0:00:41]} 51. Rg6 {[%clk 0:00:13]}  Rb2+ {[%clk 0:00:35]} 52. Ke1 {[%clk 0:00:09]}  Re2+ {[%clk 0:00:33]} 0-1


[Site "https://www.chess.com"]

[Event "Titled Tuesday Blitz June 13 Early 2023"]
[White "Lenderman, Aleksandr"]
[Black "Pham, Le Thao Nguyen"]
[WhiteFideId "2021285"]
[BlackFideId "12401226"]
[WhiteElo "2607"]
[BlackElo "2286"]
[Result "1-0"]
[Round "1"]
[TimeControl "180+2"]
[Date "2023.06.13"]
[WhiteClock "0:01:08"]
[BlackClock "0:00:12"]
[Board "20"]

1. Nf3 {[%clk 0:02:41]}  d5 {[%clk 0:02:57]} 2. e3 {[%clk 0:02:39]}  Bf5 {[%clk 0:02:51]} 3. c4 {[%clk 0:02:38]}  c6 {[%clk 0:02:46]} 4. cxd5 {[%clk 0:02:36]}  cxd5 {[%clk 0:02:46]} 5. Qb3 {[%clk 0:02:35]}  Qc7 {[%clk 0:02:42]} 6. Bb5+ {[%clk 0:02:34]}  Bd7 {[%clk 0:02:36]} 7. Nc3 {[%clk 0:02:34]}  e6 {[%clk 0:02:35]} 8. d4 {[%clk 0:02:33]}  Bxb5 {[%clk 0:02:23]} 9. Nxb5 {[%clk 0:02:31]}  Qb6 {[%clk 0:02:23]} 10. Bd2 {[%clk 0:02:30]}  a6 {[%clk 0:02:03]} 11. Rc1 {[%clk 0:02:16]}  Qxb5 {[%clk 0:01:09]} 12. Qxb5+ {[%clk 0:02:13]}  axb5 {[%clk 0:01:10]} 13. Rc8+ {[%clk 0:02:13]}  Ke7 {[%clk 0:00:56]} 14. O-O {[%clk 0:01:34]}  Nh6 {[%clk 0:00:37]} 15. Rfc1 {[%clk 0:01:14]}  Rxa2 {[%clk 0:00:18]} 16. Rxb8 {[%clk 0:01:12]}  Rxb2 {[%clk 0:00:18]} 17. Bc3 {[%clk 0:01:09]}  Rb3 {[%clk 0:00:17]} 18. Nd2 {[%clk 0:01:08]}  Rxc3 {[%clk 0:00:17]} 19. Rxc3 {[%clk 0:01:09]}  Kf6 {[%clk 0:00:15]} 20. Rcc8 {[%clk 0:01:09]}  b4 {[%clk 0:00:12]} 21. Rxf8 {[%clk 0:01:08]} 1-0


[Site "https://www.chess.com"]

[Event "Titled Tuesday Blitz June 13 Early 2023"]
[White "Luo, Terry"]
[Black "Henriquez Villagra, Cristobal"]
[WhiteFideId "30931045"]
[BlackFideId "3409350"]
[WhiteElo "2265"]
[BlackElo "2542"]
[Result "0-1"]
[Round "1"]
[TimeControl "180+2"]
[Date "2023.06.13"]
[WhiteClock "0:00:18"]
[BlackClock "0:00:19"]
[Board "21"]

1. d4 {[%clk 0:03:00]}  d6 {[%clk 0:02:55]} 2. Nf3 {[%clk 0:03:00]}  Nf6 {[%clk 0:02:54]} 3. c4 {[%clk 0:02:58]}  g6 {[%clk 0:02:51]} 4. Nc3 {[%clk 0:02:55]}  Bg7 {[%clk 0:02:52]} 5. e4 {[%clk 0:02:54]}  O-O {[%clk 0:02:52]} 6. Be2 {[%clk 0:02:55]}  Na6 {[%clk 0:02:52]} 7. O-O {[%clk 0:02:55]}  e5 {[%clk 0:02:53]} 8. Re1 {[%clk 0:02:56]}  Qe7 {[%clk 0:02:41]} 9. Bf1 {[%clk 0:02:50]}  c6 {[%clk 0:02:37]} 10. a3 {[%clk 0:02:46]}  Bg4 {[%clk 0:02:29]} 11. d5 {[%clk 0:02:44]}  Nc5 {[%clk 0:02:23]} 12. b4 {[%clk 0:02:40]}  Bxf3 {[%clk 0:02:23]} 13. Qxf3 {[%clk 0:02:17]}  Nb3 {[%clk 0:02:23]} 14. Rb1 {[%clk 0:02:18]}  Nd4 {[%clk 0:02:24]} 15. Qd1 {[%clk 0:02:17]}  Nd7 {[%clk 0:01:57]} 16. dxc6 {[%clk 0:02:08]}  bxc6 {[%clk 0:01:57]} 17. b5 {[%clk 0:02:09]}  Nc5 {[%clk 0:01:39]} 18. bxc6 {[%clk 0:02:04]}  Nxc6 {[%clk 0:01:40]} 19. Nd5 {[%clk 0:02:04]}  Qd8 {[%clk 0:01:40]} 20. Be3 {[%clk 0:02:04]}  Nd4 {[%clk 0:01:40]} 21. Bxd4 {[%clk 0:01:46]}  exd4 {[%clk 0:01:41]} 22. Qd2 {[%clk 0:01:40]}  Kh8 {[%clk 0:01:40]} 23. f4 {[%clk 0:01:34]}  Rb8 {[%clk 0:01:39]} 24. g3 {[%clk 0:01:31]}  Rxb1 {[%clk 0:01:35]} 25. Rxb1 {[%clk 0:01:31]}  Nxe4 {[%clk 0:01:35]} 26. Qd3 {[%clk 0:01:32]}  Nc5 {[%clk 0:01:35]} 27. Qd2 {[%clk 0:01:32]}  Re8 {[%clk 0:01:33]} 28. Re1 {[%clk 0:01:31]}  Ne4 {[%clk 0:01:05]} 29. Qd3 {[%clk 0:01:21]}  f5 {[%clk 0:01:05]} 30. Bg2 {[%clk 0:01:20]}  Nc5 {[%clk 0:01:02]} 31. Qd2 {[%clk 0:01:19]}  d3 {[%clk 0:01:02]} 32. h4 {[%clk 0:01:17]}  h5 {[%clk 0:00:38]} 33. Kh2 {[%clk 0:01:04]}  Kh7 {[%clk 0:00:38]} 34. Bf3 {[%clk 0:01:01]}  Kh6 {[%clk 0:00:37]} 35. Kh3 {[%clk 0:00:59]}  Rxe1 {[%clk 0:00:26]} 36. Qxe1 {[%clk 0:00:58]}  Qg8 {[%clk 0:00:26]} 37. Qe7 {[%clk 0:00:37]}  Qe6 {[%clk 0:00:24]} 38. Qxe6 {[%clk 0:00:26]}  Nxe6 {[%clk 0:00:25]} 39. Kg2 {[%clk 0:00:26]}  Nc5 {[%clk 0:00:25]} 40. Kf2 {[%clk 0:00:24]}  Bb2 {[%clk 0:00:26]} 41. a4 {[%clk 0:00:23]}  Nxa4 {[%clk 0:00:25]} 42. Ke3 {[%clk 0:00:24]}  Nc5 {[%clk 0:00:25]} 43. Bd1 {[%clk 0:00:24]}  Bc1+ {[%clk 0:00:21]} 44. Kd4 {[%clk 0:00:24]}  Bb2+ {[%clk 0:00:20]} 45. Ke3 {[%clk 0:00:24]}  a5 {[%clk 0:00:20]} 46. Nb6 {[%clk 0:00:23]}  Bc1+ {[%clk 0:00:20]} 47. Kd4 {[%clk 0:00:24]}  Ne4 {[%clk 0:00:18]} 48. Kxd3 {[%clk 0:00:18]}  Nxg3 {[%clk 0:00:19]} 0-1


[Site "https://www.chess.com"]

[Event "Titled Tuesday Blitz June 13 Early 2023"]
[White "Sharapov, Evgeny"]
[Black "Madaminov, Mukhiddin"]
[WhiteFideId "14103133"]
[BlackFideId "14210703"]
[WhiteElo "2367"]
[BlackElo "2511"]
[Result "0-1"]
[Round "1"]
[TimeControl "180+2"]
[Date "2023.06.13"]
[WhiteClock "0:00:58"]
[BlackClock "0:01:18"]
[Board "23"]

1. e4 {[%clk 0:02:56]}  c5 {[%clk 0:02:59]} 2. Nf3 {[%clk 0:02:56]}  d6 {[%clk 0:03:00]} 3. d4 {[%clk 0:02:56]}  cxd4 {[%clk 0:03:01]} 4. Nxd4 {[%clk 0:02:56]}  Nf6 {[%clk 0:03:01]} 5. Nc3 {[%clk 0:02:57]}  Nc6 {[%clk 0:03:02]} 6. Bg5 {[%clk 0:02:55]}  e6 {[%clk 0:03:02]} 7. Qd2 {[%clk 0:02:55]}  a6 {[%clk 0:03:03]} 8. O-O-O {[%clk 0:02:55]}  Bd7 {[%clk 0:03:04]} 9. f3 {[%clk 0:02:55]}  Be7 {[%clk 0:03:02]} 10. h4 {[%clk 0:02:55]}  Qc7 {[%clk 0:02:59]} 11. Kb1 {[%clk 0:02:53]}  Nxd4 {[%clk 0:02:50]} 12. Qxd4 {[%clk 0:02:53]}  b5 {[%clk 0:02:50]} 13. g4 {[%clk 0:02:52]}  O-O {[%clk 0:02:45]} 14. Be3 {[%clk 0:02:51]}  Rfc8 {[%clk 0:02:42]} 15. g5 {[%clk 0:02:48]}  Ne8 {[%clk 0:02:39]} 16. Qd2 {[%clk 0:02:34]}  b4 {[%clk 0:02:36]} 17. Ne2 {[%clk 0:02:33]}  a5 {[%clk 0:02:37]} 18. Nd4 {[%clk 0:02:30]}  Rab8 {[%clk 0:02:22]} 19. Bd3 {[%clk 0:02:29]}  a4 {[%clk 0:02:14]} 20. Rc1 {[%clk 0:02:29]}  Qc3 {[%clk 0:01:59]} 21. Qg2 {[%clk 0:02:13]}  Qc7 {[%clk 0:01:56]} 22. h5 {[%clk 0:02:12]}  a3 {[%clk 0:01:56]} 23. g6 {[%clk 0:02:07]}  axb2 {[%clk 0:01:50]} 24. gxh7+ {[%clk 0:02:07]}  Kh8 {[%clk 0:01:49]} 25. Rcg1 {[%clk 0:02:03]}  Ra8 {[%clk 0:01:49]} 26. Nb3 {[%clk 0:01:42]}  Bf6 {[%clk 0:01:40]} 27. Bg5 {[%clk 0:01:32]}  Bc3 {[%clk 0:01:27]} 28. h6 {[%clk 0:01:20]}  Rxa2 {[%clk 0:01:17]} 29. hxg7+ {[%clk 0:00:58]}  Nxg7 {[%clk 0:01:18]} 0-1


[Site "https://www.chess.com"]

[Event "Titled Tuesday Blitz June 13 Early 2023"]
[White "Matlakov, Maxim"]
[Black "Rodchenkov, Sergey D."]
[WhiteFideId "4168003"]
[BlackFideId "4168712"]
[WhiteElo "2666"]
[BlackElo "2277"]
[Result "1-0"]
[Round "1"]
[TimeControl "180+2"]
[Date "2023.06.13"]
[WhiteClock "0:01:26"]
[BlackClock "0:00:47"]
[Board "24"]

1. Nf3 {[%clk 0:02:58]}  d5 {[%clk 0:02:55]} 2. g3 {[%clk 0:02:58]}  Nf6 {[%clk 0:02:55]} 3. Bg2 {[%clk 0:02:59]}  c6 {[%clk 0:02:56]} 4. O-O {[%clk 0:02:59]}  Bg4 {[%clk 0:02:56]} 5. d3 {[%clk 0:02:58]}  Nbd7 {[%clk 0:02:57]} 6. Qe1 {[%clk 0:02:59]}  e5 {[%clk 0:02:57]} 7. e4 {[%clk 0:02:59]}  dxe4 {[%clk 0:02:56]} 8. dxe4 {[%clk 0:03:00]}  Be7 {[%clk 0:02:57]} 9. Nbd2 {[%clk 0:03:00]}  O-O {[%clk 0:02:57]} 10. h3 {[%clk 0:02:58]}  Bh5 {[%clk 0:02:54]} 11. Nc4 {[%clk 0:02:57]}  Qc7 {[%clk 0:02:52]} 12. a4 {[%clk 0:02:53]}  Rfe8 {[%clk 0:02:49]} 13. Nh4 {[%clk 0:02:47]}  Bf8 {[%clk 0:02:48]} 14. b3 {[%clk 0:02:43]}  Bg6 {[%clk 0:02:47]} 15. Bb2 {[%clk 0:02:42]}  a5 {[%clk 0:02:37]} 16. Rd1 {[%clk 0:02:41]}  b5 {[%clk 0:02:34]} 17. Nxg6 {[%clk 0:02:33]}  hxg6 {[%clk 0:02:31]} 18. Nd2 {[%clk 0:02:19]}  bxa4 {[%clk 0:02:26]} 19. bxa4 {[%clk 0:02:20]}  Nb6 {[%clk 0:02:23]} 20. Ra1 {[%clk 0:02:17]}  Red8 {[%clk 0:02:17]} 21. Qe2 {[%clk 0:02:16]}  Nfd7 {[%clk 0:01:55]} 22. Nf3 {[%clk 0:02:15]}  f6 {[%clk 0:01:54]} 23. h4 {[%clk 0:02:15]}  Nc5 {[%clk 0:01:54]} 24. h5 {[%clk 0:02:13]}  g5 {[%clk 0:01:48]} 25. Bh3 {[%clk 0:02:09]}  Nbxa4 {[%clk 0:01:45]} 26. Rxa4 {[%clk 0:02:07]}  Nxa4 {[%clk 0:01:44]} 27. Qc4+ {[%clk 0:02:07]}  Kh8 {[%clk 0:01:41]} 28. Qxa4 {[%clk 0:02:06]}  Rab8 {[%clk 0:01:41]} 29. Qa2 {[%clk 0:01:54]}  Qb7 {[%clk 0:01:29]} 30. Bxe5 {[%clk 0:01:41]}  fxe5 {[%clk 0:01:11]} 31. Nxe5 {[%clk 0:01:42]}  g6 {[%clk 0:01:12]} 32. Qe6 {[%clk 0:01:32]}  Rd6 {[%clk 0:00:48]} 33. Nf7+ {[%clk 0:01:28]}  Kg7 {[%clk 0:00:48]} 34. Nxd6 {[%clk 0:01:27]}  Bxd6 {[%clk 0:00:49]} 35. Qxg6+ {[%clk 0:01:27]}  Kh8 {[%clk 0:00:47]} 36. Qxd6 {[%clk 0:01:26]} 1-0


[Site "https://www.chess.com"]

[Event "Titled Tuesday Blitz June 13 Early 2023"]
[White "Tokman, Ariel"]
[Black "Bok, Benjamin"]
[WhiteFideId "117420"]
[BlackFideId "1017063"]
[WhiteElo "2263"]
[BlackElo "2657"]
[Result "0-1"]
[Round "1"]
[TimeControl "180+2"]
[Date "2023.06.13"]
[WhiteClock "0:00:00"]
[BlackClock "0:01:01"]
[Board "25"]

1. c4 {[%clk 0:02:57]}  e6 {[%clk 0:02:58]} 2. Nf3 {[%clk 0:02:57]}  d5 {[%clk 0:02:58]} 3. d4 {[%clk 0:02:56]}  Nf6 {[%clk 0:02:57]} 4. Bg5 {[%clk 0:02:52]}  h6 {[%clk 0:02:54]} 5. Bxf6 {[%clk 0:02:49]}  Qxf6 {[%clk 0:02:55]} 6. e3 {[%clk 0:02:49]}  c6 {[%clk 0:02:49]} 7. Nc3 {[%clk 0:02:48]}  g6 {[%clk 0:02:48]} 8. Bd3 {[%clk 0:02:41]}  Bg7 {[%clk 0:02:47]} 9. O-O {[%clk 0:02:40]}  O-O {[%clk 0:02:46]} 10. Qe2 {[%clk 0:02:38]}  Nd7 {[%clk 0:02:44]} 11. Rad1 {[%clk 0:02:34]}  Qe7 {[%clk 0:02:43]} 12. e4 {[%clk 0:02:32]}  dxc4 {[%clk 0:02:43]} 13. Bxc4 {[%clk 0:02:31]}  b5 {[%clk 0:02:39]} 14. Bb3 {[%clk 0:02:29]}  Bb7 {[%clk 0:02:38]} 15. Rfe1 {[%clk 0:02:21]}  Rfd8 {[%clk 0:02:35]} 16. e5 {[%clk 0:01:25]}  a6 {[%clk 0:02:22]} 17. Ne4 {[%clk 0:01:24]}  c5 {[%clk 0:02:22]} 18. dxc5 {[%clk 0:00:58]}  Nxc5 {[%clk 0:02:21]} 19. Nd6 {[%clk 0:00:42]}  Nxb3 {[%clk 0:02:12]} 20. axb3 {[%clk 0:00:43]}  Bd5 {[%clk 0:02:09]} 21. Ne4 {[%clk 0:00:12]}  Bxb3 {[%clk 0:02:05]} 22. Ra1 {[%clk 0:00:10]}  Bc4 {[%clk 0:01:51]} 23. Qe3 {[%clk 0:00:10]}  Bd5 {[%clk 0:01:46]} 24. Qf4 {[%clk 0:00:05]}  Bxe4 {[%clk 0:01:42]} 25. Qxe4 {[%clk 0:00:06]}  a5 {[%clk 0:01:38]} 26. h4 {[%clk 0:00:06]}  a4 {[%clk 0:01:32]} 27. Rac1 {[%clk 0:00:04]}  Rac8 {[%clk 0:01:25]} 28. h5 {[%clk 0:00:04]}  gxh5 {[%clk 0:01:21]} 29. Qf4 {[%clk 0:00:03]}  Rxc1 {[%clk 0:01:07]} 30. Rxc1 {[%clk 0:00:04]}  b4 {[%clk 0:01:07]} 31. Qh2 {[%clk 0:00:04]}  a3 {[%clk 0:01:04]} 32. bxa3 {[%clk 0:00:05]}  bxa3 {[%clk 0:01:04]} 33. Qxh5 {[%clk 0:00:05]}  a2 {[%clk 0:01:03]} 34. Qg4 {[%clk 0:00:04]}  Qa3 {[%clk 0:01:01]} 35. Ra1 {[%clk 0:00:00]}  Qb2 {[%clk 0:01:01]} 0-1


[Site "https://www.chess.com"]

[Event "Titled Tuesday Blitz June 13 Early 2023"]
[White "Kramnik, Vladimir"]
[Black "Gomes, Luiz Alexandre de Souza"]
[WhiteFideId "4101588"]
[BlackFideId "2102790"]
[WhiteElo "2703"]
[BlackElo "2503"]
[Result "1-0"]
[Round "1"]
[TimeControl "180+2"]
[Date "2023.06.13"]
[WhiteClock "0:00:33"]
[BlackClock "0:00:00"]
[Board "28"]

1. e4 {[%clk 0:02:59]}  c5 {[%clk 0:02:58]} 2. Nf3 {[%clk 0:02:57]}  d6 {[%clk 0:02:48]} 3. d4 {[%clk 0:02:55]}  cxd4 {[%clk 0:02:33]} 4. Nxd4 {[%clk 0:02:54]}  Nf6 {[%clk 0:02:33]} 5. Nc3 {[%clk 0:02:48]}  a6 {[%clk 0:02:33]} 6. Bc4 {[%clk 0:02:46]}  e6 {[%clk 0:02:33]} 7. Be3 {[%clk 0:02:43]}  b5 {[%clk 0:02:31]} 8. Bb3 {[%clk 0:02:42]}  Qc7 {[%clk 0:02:31]} 9. f3 {[%clk 0:02:35]}  Be7 {[%clk 0:02:29]} 10. g4 {[%clk 0:02:34]}  h6 {[%clk 0:02:28]} 11. Qd2 {[%clk 0:02:27]}  Nc6 {[%clk 0:02:28]} 12. O-O-O {[%clk 0:02:19]}  Nxd4 {[%clk 0:02:26]} 13. Bxd4 {[%clk 0:02:16]}  Bb7 {[%clk 0:02:16]} 14. h4 {[%clk 0:02:09]}  b4 {[%clk 0:01:07]} 15. Na4 {[%clk 0:02:06]}  e5 {[%clk 0:01:04]} 16. Bb6 {[%clk 0:01:52]}  Qc6 {[%clk 0:00:49]} 17. Qxb4 {[%clk 0:01:39]}  O-O {[%clk 0:00:47]} 18. g5 {[%clk 0:01:35]}  Nh5 {[%clk 0:00:45]} 19. g6 {[%clk 0:01:23]}  Kh8 {[%clk 0:00:34]} 20. gxf7 {[%clk 0:01:22]}  Nf4 {[%clk 0:00:20]} 21. Be3 {[%clk 0:01:11]}  Rab8 {[%clk 0:00:16]} 22. Qc4 {[%clk 0:01:04]}  Qd7 {[%clk 0:00:10]} 23. Nc5 {[%clk 0:00:57]}  Qd8 {[%clk 0:00:09]} 24. Bxf4 {[%clk 0:00:54]}  exf4 {[%clk 0:00:08]} 25. Ne6 {[%clk 0:00:53]}  Qb6 {[%clk 0:00:04]} 26. Nxf8 {[%clk 0:00:45]}  Rxf8 {[%clk 0:00:05]} 27. Kb1 {[%clk 0:00:42]}  Qd8 {[%clk 0:00:01]} 28. Rhg1 {[%clk 0:00:39]}  Bf6 {[%clk 0:00:02]} 29. Qe6 {[%clk 0:00:37]}  Qe7 {[%clk 0:00:01]} 30. Qxe7 {[%clk 0:00:35]}  Bxe7 {[%clk 0:00:02]} 31. e5 {[%clk 0:00:34]}  dxe5 {[%clk 0:00:00]} 32. Rd7 {[%clk 0:00:33]} 1-0


[Site "https://www.chess.com"]

[Event "Titled Tuesday Blitz June 13 Early 2023"]
[White "Mostbauer, Florian"]
[Black "Kevlishvili, Robby"]
[WhiteFideId "1626671"]
[BlackFideId "1040634"]
[WhiteElo "2234"]
[BlackElo "2572"]
[Result "0-1"]
[Round "1"]
[TimeControl "180+2"]
[Date "2023.06.13"]
[WhiteClock "0:00:01"]
[BlackClock "0:01:01"]
[Board "29"]

1. d4 {[%clk 0:02:55]}  Nf6 {[%clk 0:02:59]} 2. c4 {[%clk 0:02:47]}  g6 {[%clk 0:03:00]} 3. e3 {[%clk 0:02:43]}  Bg7 {[%clk 0:03:00]} 4. Nf3 {[%clk 0:02:42]}  O-O {[%clk 0:03:00]} 5. Nc3 {[%clk 0:02:40]}  d6 {[%clk 0:03:00]} 6. Bd2 {[%clk 0:02:39]}  Nbd7 {[%clk 0:02:52]} 7. Bd3 {[%clk 0:02:37]}  e5 {[%clk 0:02:52]} 8. O-O {[%clk 0:02:33]}  Re8 {[%clk 0:02:52]} 9. Qc2 {[%clk 0:02:31]}  b6 {[%clk 0:02:52]} 10. dxe5 {[%clk 0:02:27]}  Nxe5 {[%clk 0:02:48]} 11. Nxe5 {[%clk 0:02:26]}  Rxe5 {[%clk 0:02:49]} 12. Rad1 {[%clk 0:02:24]}  Bb7 {[%clk 0:02:47]} 13. Ne2 {[%clk 0:02:17]}  Ne4 {[%clk 0:02:38]} 14. f4 {[%clk 0:02:00]}  Nxd2 {[%clk 0:02:32]} 15. Qxd2 {[%clk 0:01:50]}  Re8 {[%clk 0:02:30]} 16. Nc3 {[%clk 0:01:46]}  Bxc3 {[%clk 0:02:30]} 17. Qxc3 {[%clk 0:01:46]}  Rxe3 {[%clk 0:02:27]} 18. Rde1 {[%clk 0:01:43]}  Qe7 {[%clk 0:02:23]} 19. Bxg6 {[%clk 0:01:21]}  Re2 {[%clk 0:01:27]} 20. Rxe2 {[%clk 0:00:54]}  Qxe2 {[%clk 0:01:27]} 21. Rf2 {[%clk 0:00:52]}  Qd1+ {[%clk 0:01:17]} 22. Rf1 {[%clk 0:00:51]}  Qg4 {[%clk 0:01:17]} 23. Bxf7+ {[%clk 0:00:37]}  Kxf7 {[%clk 0:01:16]} 24. Rf2 {[%clk 0:00:31]}  Re8 {[%clk 0:01:13]} 25. h3 {[%clk 0:00:27]}  Qd1+ {[%clk 0:01:06]} 26. Rf1 {[%clk 0:00:25]}  Qe2 {[%clk 0:01:03]} 27. Rf2 {[%clk 0:00:22]}  Qe1+ {[%clk 0:01:03]} 28. Rf1 {[%clk 0:00:22]}  Qxc3 {[%clk 0:01:03]} 29. bxc3 {[%clk 0:00:20]}  Re2 {[%clk 0:00:59]} 30. g4 {[%clk 0:00:20]}  Rg2+ {[%clk 0:00:59]} 31. Kh1 {[%clk 0:00:19]}  Rxg4+ {[%clk 0:00:59]} 32. Kh2 {[%clk 0:00:16]}  Rg2+ {[%clk 0:00:59]} 33. Kh1 {[%clk 0:00:15]}  Rxa2+ {[%clk 0:01:00]} 34. Kg1 {[%clk 0:00:13]}  Rg2+ {[%clk 0:01:00]} 35. Kh1 {[%clk 0:00:13]}  Rf2+ {[%clk 0:01:01]} 36. Kg1 {[%clk 0:00:10]}  Rxf1+ {[%clk 0:01:02]} 37. Kxf1 {[%clk 0:00:11]}  a5 {[%clk 0:01:02]} 38. h4 {[%clk 0:00:01]}  a4 {[%clk 0:01:01]} 0-1


[Site "https://www.chess.com"]

[Event "Titled Tuesday Blitz June 13 Early 2023"]
[White "Zhigalko, Sergei"]
[Black "Aarav Dengla"]
[WhiteFideId "13502956"]
[BlackFideId "45059756"]
[WhiteElo "2626"]
[BlackElo "2288"]
[Result "1-0"]
[Round "1"]
[TimeControl "180+2"]
[Date "2023.06.13"]
[WhiteClock "0:00:56"]
[BlackClock "0:00:00"]
[Board "30"]

1. e4 {[%clk 0:03:00]}  c5 {[%clk 0:02:59]} 2. Nf3 {[%clk 0:03:00]}  d6 {[%clk 0:02:54]} 3. d4 {[%clk 0:03:00]}  cxd4 {[%clk 0:02:55]} 4. Qxd4 {[%clk 0:03:01]}  Nc6 {[%clk 0:02:53]} 5. Bb5 {[%clk 0:02:58]}  Bd7 {[%clk 0:02:52]} 6. Bxc6 {[%clk 0:02:57]}  Bxc6 {[%clk 0:02:53]} 7. Nc3 {[%clk 0:02:57]}  Nf6 {[%clk 0:02:52]} 8. Bg5 {[%clk 0:02:57]}  e6 {[%clk 0:02:52]} 9. O-O-O {[%clk 0:02:55]}  Be7 {[%clk 0:02:51]} 10. Rhe1 {[%clk 0:02:54]}  Qa5 {[%clk 0:02:49]} 11. Kb1 {[%clk 0:02:54]}  O-O {[%clk 0:02:36]} 12. Qd2 {[%clk 0:02:54]}  Qc5 {[%clk 0:02:23]} 13. Nd4 {[%clk 0:02:47]}  Rac8 {[%clk 0:02:09]} 14. f3 {[%clk 0:02:43]}  h6 {[%clk 0:01:49]} 15. Be3 {[%clk 0:02:43]}  Qe5 {[%clk 0:01:36]} 16. g4 {[%clk 0:02:37]}  Kh8 {[%clk 0:01:28]} 17. g5 {[%clk 0:02:21]}  hxg5 {[%clk 0:01:23]} 18. Bxg5 {[%clk 0:02:22]}  Ng8 {[%clk 0:01:22]} 19. f4 {[%clk 0:02:14]}  Bxg5 {[%clk 0:01:20]} 20. fxg5 {[%clk 0:02:14]}  Ne7 {[%clk 0:01:13]} 21. h4 {[%clk 0:02:10]}  g6 {[%clk 0:01:11]} 22. Nf3 {[%clk 0:02:01]}  Qg3 {[%clk 0:01:03]} 23. Qe3 {[%clk 0:01:53]}  f5 {[%clk 0:00:55]} 24. gxf6 {[%clk 0:01:36]}  Rxf6 {[%clk 0:00:37]} 25. Qh6+ {[%clk 0:01:35]}  Kg8 {[%clk 0:00:37]} 26. Ng5 {[%clk 0:01:36]}  Qe5 {[%clk 0:00:14]} 27. Rf1 {[%clk 0:01:03]}  d5 {[%clk 0:00:04]} 28. Qh7+ {[%clk 0:00:55]}  Kf8 {[%clk 0:00:03]} 29. Qh8+ {[%clk 0:00:56]}  Ng8 {[%clk 0:00:00]} 30. Rxf6+ {[%clk 0:00:56]} 1-0


[Site "https://www.chess.com"]